Workbook

Sheet はじめに

Sheet TOP

Sheet 概要

Sheet 説明①

Sheet 説明②

Sheet 説明③

Sheet アンケート
M3: ３年 組 番 名前
G4: 理科のじゅぎょうアンケート
G6: これまでの理科のじゅぎょうでやったことがあるかを聞くアンケートです。​しつ問にあてはまる番号を○でかこんでください。
G7: しつ問をきいて、「わからないな」とか、「やったことがないな」 ​とおもったときは、３の「どちらともいえない」をえらんでください。​
G9: 番ごう | H9: しつ問 | I9: できる | J9: やや | K9: どちらとも | L9: あまり | M9: できない
J10: できる | K10: いえない | L10: できない
G11: 1 | H11: じゅぎょうの中で、「自分が知っていること」を思い出すことができますか。 | I11: 5 | J11: 4 | K11: 3 | L11: 2 | M11: 1
G12: 2 | H12: じゅぎょうの中で、「自分が知っていること」と「じゅぎょうで活動してわかったこと」をくらべることができますか。 | I12: 5 | J12: 4 | K12: 3 | L12: 2 | M12: 1
G13: 3 | H13: じゅぎょうの中で「自分が知っていること」と「じゅぎょうで活動してわかったこと」をくらべたことから、気づいたり、ぎ問を持ったりすることができますか。 | I13: 5 | J13: 4 | K13: 3 | L13: 2 | M13: 1
G14: 4 | H14: 自分や友だちの気づいたことやぎ問から、テーマにあったものをえらぶことができますか。 | I14: 5 | J14: 4 | K14: 3 | L14: 2 | M14: 1
G15: 5 | H15: 自分や友だちがえらんだものを、なか間分けすることができますか。 | I15: 5 | J15: 4 | K15: 3 | L15: 2 | M15: 1
G16: 6 | H16: 自分や友だちがなか間分けしたグループに名前をつけることができますか。 | I16: 5 | J16: 4 | K16: 3 | L16: 2 | M16: 1
G17: 7 | H17: 自分や友だちが名前をつけたグループから、テーマにあった「気づき」を書いたり話したりできますか。​ | I17: 5 | J17: 4 | K17: 3 | L17: 2 | M17: 1
G18: 8 | H18: 自分や友だちが気づいたことから、わかりやすいれいを考えることができますか。 | I18: 5 | J18: 4 | K18: 3 | L18: 2 | M18: 1
G19: 9 | H19: 自分や友だちが考えたわかりやすいれいどうしをくらべることができますか。 | I19: 5 | J19: 4 | K19: 3 | L19: 2 | M19: 1
G20: 10 | H20: 自分や友だちが考えたわかりやすいれいどうしをくらべたことから、同じところやちがうところを見つけることができますか。 | I20: 5 | J20: 4 | K20: 3 | L20: 2 | M20: 1
G21: 11 | H21: 自分や友だちが見つけた同じところやちがうところから、それぞれのとくちょうを見つけることができますか。 | I21: 5 | J21: 4 | K21: 3 | L21: 2 | M21: 1
G22: 12 | H22: 「自分や友だちが見つけた同じところやちがうところ」または「それぞれのとくちょう」と「これまでまとめてきたこと」をくらべることができますか。 | I22: 5 | J22: 4 | K22: 3 | L22: 2 | M22: 1
G23: 13 | H23: 「自分や友だちが見つけた同じところやちがうところ」または「それぞれのとくちょう」と「これまでまとめてきたこと」をくらべたことから、「しらべてみたいこと」を自分でつくることができますか。 | I23: 5 | J23: 4 | K23: 3 | L23: 2 | M23: 1
G24: 14 | H24: 自分で考えた「しらべてみたいこと」が、テーマにあったものなのか、かくにんすることができますか。 | I24: 5 | J24: 4 | K24: 3 | L24: 2 | M24: 1
G25: 15 | H25: 自分で考えた「しらべてみたいこと」を、しらべることができるか、かくにんすることができますか。 | I25: 5 | J25: 4 | K25: 3 | L25: 2 | M25: 1

Sheet 印刷
C2: 学年 | D2: 組 | G2: ［児童用］ | Z2: ［教師用］ | AV2: アンケートの質問と学習シートとのおおまかな関連です。授業との関連を詳
C3: ３ | D3: ３ | AV3: しく知りたい場合や、ファシリテーションの方法を知りたい場合は、こちら→
D4: 番号を入力 | W4: ="令和 "&$B$9&" 年 "&$C$9&" 月 "&$D$9&" 日" -> 令和 7 年 9 月 15 日 | AS4: ="令和 "&$B$9&" 年 "&$C$9&" 月 "&$D$9&" 日" -> 令和 7 年 9 月 15 日
D5: (組 & 番、３桁)
B6: 302 | F6: 理科のじゅぎょうアンケート かくにんシート | Y6: 【理科】「分析して解釈する力」成長チェックシート
C7: 発行年月日 | AS7: =IF(C3="","",C3)&"年"&IF(D3="","",D3)&"組" -> ３年３組
B8: 年 | C8: 月 | D8: 日 | W8: =IF(C3="","",C3)&"年"&IF(D3="","",D3)&"組 "&IF(VLOOKUP(B6,'１回目'!A5:W50,3,FALSE)="","",VLOOKUP(B6,'１回目'!A5:W50,3,FALSE))&"番"&" 名前 "&IF(VLOOKUP(B6,'１回目'!A5:W50,4,FALSE)="","",VLOOKUP(B6,'１回目'!A5:W50,4,FALSE)) -> ３年３組 2番 名前 美田 園子
B9: 7 | C9: 9 | D9: 15

Sheet １回目
C2: 日時 | D2: 2025-09-07
C3: 単元 | D3: 単元なし
C4: 節 | D4: なし
A5: N0. | B5: 組 | C5: 番号 | D5: 氏 名 | E5: Q１ | F5: Q２ | G5: Q３ | H5: Q４ | I5: Q５ | J5: Q６ | K5: Q７ | L5: Q８ | M5: Q９ | N5: Q10 | O5: Q11 | P5: Q12 | Q5: Q13 | R5: Q14 | S5: Q15 | T5: 抽・整 | U5: 関・傾 | V5: 問題の設定 | W5: 全体
A6: =IF(C6="","",B6*100+C6) -> 301 | B6: =IF(C6="","",印刷!$D$3) -> ３ | C6: 1 | D6: 名取 せり | E6: 3 | F6: 3 | G6: 3 | H6: 3 | I6: 3 | J6: 3 | K6: 3 | L6: 3 | M6: 3 | N6: 3 | O6: 3 | P6: 3 | Q6: 3 | R6: 3 | S6: 3 | T6: =IF(COUNT(E6:K6)=0,"",AVERAGE(E6:K6)) -> 3 | U6: =IF(COUNT(K6:O6)=0,"",AVERAGE(K6:O6)) -> 3 | V6: =IF(COUNT(P6:S6)=0,"",AVERAGE(P6:S6)) -> 3 | W6: =IF(COUNT(E6:S6)=0,"",AVERAGE(E6:S6)) -> 3
A7: =IF(C7="","",B7*100+C7) -> 302 | B7: =IF(C7="","",印刷!$D$3) -> ３ | C7: 2 | D7: 美田 園子 | E7: 4 | F7: 4 | G7: 3 | H7: 3 | I7: 3 | J7: 3 | K7: 3 | L7: 2 | M7: 3 | N7: 3 | O7: 3 | P7: 3 | Q7: 3 | R7: 3 | S7: 3 | T7: =IF(COUNT(E7:K7)=0,"",AVERAGE(E7:K7)) -> 3.285714286 | U7: =IF(COUNT(K7:O7)=0,"",AVERAGE(K7:O7)) -> 2.8 | V7: =IF(COUNT(P7:S7)=0,"",AVERAGE(P7:S7)) -> 3 | W7: =IF(COUNT(E7:S7)=0,"",AVERAGE(E7:S7)) -> 3.066666667
B8: =IF(C8="","",印刷!$D$3) -> 
B9: =IF(C9="","",印刷!$D$3) -> 
B10: =IF(C10="","",印刷!$D$3) -> 
B11: =IF(C11="","",印刷!$D$3) -> 
B12: =IF(C12="","",印刷!$D$3) -> 
B13: =IF(C13="","",印刷!$D$3) -> 
B14: =IF(C14="","",印刷!$D$3) -> 
A15: =IF(C15="","",B15*100+C15) ->  | B15: =IF(C15="","",印刷!$D$3) ->  | T15: =IF(COUNT(E15:K15)=0,"",AVERAGE(E15:K15)) ->  | U15: =IF(COUNT(K15:O15)=0,"",AVERAGE(K15:O15)) ->  | V15: =IF(COUNT(P15:S15)=0,"",AVERAGE(P15:S15)) ->  | W15: =IF(COUNT(E15:S15)=0,"",AVERAGE(E15:S15)) -> 
B16: =IF(C16="","",印刷!$D$3) -> 
B17: =IF(C17="","",印刷!$D$3) -> 
B18: =IF(C18="","",印刷!$D$3) -> 
B19: =IF(C19="","",印刷!$D$3) -> 
B20: =IF(C20="","",印刷!$D$3) -> 
B21: =IF(C21="","",印刷!$D$3) -> 
B22: =IF(C22="","",印刷!$D$3) -> 
B23: =IF(C23="","",印刷!$D$3) -> 
B24: =IF(C24="","",印刷!$D$3) -> 
B25: =IF(C25="","",印刷!$D$3) -> 
B26: =IF(C26="","",印刷!$D$3) -> 
B27: =IF(C27="","",印刷!$D$3) -> 
B28: =IF(C28="","",印刷!$D$3) -> 
B29: =IF(C29="","",印刷!$D$3) -> 
B30: =IF(C30="","",印刷!$D$3) -> 
B31: =IF(C31="","",印刷!$D$3) -> 
B32: =IF(C32="","",印刷!$D$3) ->  | T32: =IF(COUNT(E32:K32)=0,"",AVERAGE(E32:K32)) ->  | U32: =IF(COUNT(K32:O32)=0,"",AVERAGE(K32:O32)) ->  | V32: =IF(COUNT(P32:S32)=0,"",AVERAGE(P32:S32)) ->  | W32: =IF(COUNT(E32:S32)=0,"",AVERAGE(E32:S32)) -> 
B33: =IF(C33="","",印刷!$D$3) -> 
B34: =IF(C34="","",印刷!$D$3) -> 
B35: =IF(C35="","",印刷!$D$3) -> 
B36: =IF(C36="","",印刷!$D$3) -> 
B37: =IF(C37="","",印刷!$D$3) -> 
B38: =IF(C38="","",印刷!$D$3) -> 
B39: =IF(C39="","",印刷!$D$3) -> 
B40: =IF(C40="","",印刷!$D$3) -> 
B41: =IF(C41="","",印刷!$D$3) -> 
B42: =IF(C42="","",印刷!$D$3) -> 
B43: =IF(C43="","",印刷!$D$3) -> 
B44: =IF(C44="","",印刷!$D$3) -> 
B45: =IF(C45="","",印刷!$D$3) -> 
B46: =IF(C46="","",印刷!$D$3) -> 
B47: =IF(C47="","",印刷!$D$3) -> 
B48: =IF(C48="","",印刷!$D$3) -> 
B49: =IF(C49="","",印刷!$D$3) -> 
B50: =IF(C50="","",印刷!$D$3) -> 
A51: 999 | D51: 平均 | E51: =IF(COUNT(E5:E50)=0,"",AVERAGE(E5:E50)) -> 3.5 | F51: =IF(COUNT(F5:F50)=0,"",AVERAGE(F5:F50)) -> 3.5 | G51: 3 | H51: 3 | I51: 3 | J51: 3 | K51: 3 | L51: 2.5 | M51: 3 | N51: 3 | O51: 3 | P51: 3 | Q51: 3 | R51: 3 | S51: 3 | T51: 3.142857143 | U51: 2.9 | V51: 3 | W51: 3.033333333

Sheet ２回目
C2: 日時 | D2: 2025-09-15
C3: 単元 | D3: こん虫のかんさつ
C4: 節
A5: N0. | B5: 組 | C5: 番号 | D5: 氏 名 | E5: Q１ | F5: Q２ | G5: Q３ | H5: Q４ | I5: Q５ | J5: Q６ | K5: Q７ | L5: Q８ | M5: Q９ | N5: Q10 | O5: Q11 | P5: Q12 | Q5: Q13 | R5: Q14 | S5: Q15 | T5: 抽・整 | U5: 関・傾 | V5: 問題の設定 | W5: 全体
A6: =IF(C6="","",B6*100+C6) -> 301 | B6: =IF(C6="","",印刷!$D$3) -> ３ | C6: 1 | E6: 4 | F6: 4 | G6: 4 | H6: 4 | I6: 4 | J6: 3 | K6: 3 | L6: 3 | M6: 3 | N6: 3 | O6: 3 | P6: 3 | Q6: 3 | R6: 3 | S6: 3 | T6: =IF(COUNT(E6:K6)=0,"",AVERAGE(E6:K6)) -> 3.714285714 | U6: =IF(COUNT(K6:O6)=0,"",AVERAGE(K6:O6)) -> 3 | V6: =IF(COUNT(P6:S6)=0,"",AVERAGE(P6:S6)) -> 3 | W6: =IF(COUNT(E6:S6)=0,"",AVERAGE(E6:S6)) -> 3.333333333
A7: =IF(C7="","",B7*100+C7) -> 302 | B7: =IF(C7="","",印刷!$D$3) -> ３ | C7: 2 | E7: 5 | F7: 4 | G7: 4 | H7: 4 | I7: 4 | J7: 3 | K7: 3 | L7: 2 | M7: 3 | N7: 3 | O7: 3 | P7: 3 | Q7: 3 | R7: 3 | S7: 3 | T7: =IF(COUNT(E7:K7)=0,"",AVERAGE(E7:K7)) -> 3.857142857 | U7: =IF(COUNT(K7:O7)=0,"",AVERAGE(K7:O7)) -> 2.8 | V7: =IF(COUNT(P7:S7)=0,"",AVERAGE(P7:S7)) -> 3 | W7: =IF(COUNT(E7:S7)=0,"",AVERAGE(E7:S7)) -> 3.333333333
B8: =IF(C8="","",印刷!$D$3) -> 
B9: =IF(C9="","",印刷!$D$3) -> 
B10: =IF(C10="","",印刷!$D$3) -> 
B11: =IF(C11="","",印刷!$D$3) -> 
B12: =IF(C12="","",印刷!$D$3) -> 
B13: =IF(C13="","",印刷!$D$3) -> 
B14: =IF(C14="","",印刷!$D$3) -> 
B15: =IF(C15="","",印刷!$D$3) -> 
B16: =IF(C16="","",印刷!$D$3) -> 
B17: =IF(C17="","",印刷!$D$3) -> 
B18: =IF(C18="","",印刷!$D$3) -> 
B19: =IF(C19="","",印刷!$D$3) -> 
B20: =IF(C20="","",印刷!$D$3) -> 
B21: =IF(C21="","",印刷!$D$3) -> 
B22: =IF(C22="","",印刷!$D$3) -> 
B23: =IF(C23="","",印刷!$D$3) -> 
B24: =IF(C24="","",印刷!$D$3) -> 
B25: =IF(C25="","",印刷!$D$3) -> 
B26: =IF(C26="","",印刷!$D$3) -> 
B27: =IF(C27="","",印刷!$D$3) -> 
B28: =IF(C28="","",印刷!$D$3) -> 
B29: =IF(C29="","",印刷!$D$3) -> 
B30: =IF(C30="","",印刷!$D$3) -> 
B31: =IF(C31="","",印刷!$D$3) -> 
B32: =IF(C32="","",印刷!$D$3) ->  | T32: =IF(COUNT(E32:K32)=0,"",AVERAGE(E32:K32)) ->  | U32: =IF(COUNT(K32:O32)=0,"",AVERAGE(K32:O32)) ->  | V32: =IF(COUNT(P32:S32)=0,"",AVERAGE(P32:S32)) ->  | W32: =IF(COUNT(E32:S32)=0,"",AVERAGE(E32:S32)) -> 
B33: =IF(C33="","",印刷!$D$3) -> 
B34: =IF(C34="","",印刷!$D$3) -> 
B35: =IF(C35="","",印刷!$D$3) -> 
B36: =IF(C36="","",印刷!$D$3) -> 
B37: =IF(C37="","",印刷!$D$3) -> 
B38: =IF(C38="","",印刷!$D$3) -> 
B39: =IF(C39="","",印刷!$D$3) -> 
B40: =IF(C40="","",印刷!$D$3) -> 
B41: =IF(C41="","",印刷!$D$3) -> 
B42: =IF(C42="","",印刷!$D$3) -> 
B43: =IF(C43="","",印刷!$D$3) -> 
B44: =IF(C44="","",印刷!$D$3) -> 
B45: =IF(C45="","",印刷!$D$3) -> 
B46: =IF(C46="","",印刷!$D$3) -> 
B47: =IF(C47="","",印刷!$D$3) -> 
B48: =IF(C48="","",印刷!$D$3) -> 
B49: =IF(C49="","",印刷!$D$3) -> 
B50: =IF(C50="","",印刷!$D$3) -> 
A51: 999 | D51: 平均 | E51: =IF(COUNT(E6:E50)=0,"",AVERAGE(E6:E50)) -> 4.5 | F51: =IF(COUNT(F6:F50)=0,"",AVERAGE(F6:F50)) -> 4 | G51: 4 | H51: 4 | I51: 4 | J51: 3 | K51: 3 | L51: 2.5 | M51: 3 | N51: 3 | O51: 3 | P51: 3 | Q51: 3 | R51: 3 | S51: 3 | T51: 3.785714286 | U51: 2.9 | V51: 3 | W51: 3.333333333

Sheet ４回目
C2: 日時 | D2: 2025-12-01
C3: 単元 | D3: 物の重さ
C4: 節
A5: N0. | B5: 組 | C5: 番号 | D5: 氏 名 | E5: Q１ | F5: Q２ | G5: Q３ | H5: Q４ | I5: Q５ | J5: Q６ | K5: Q７ | L5: Q８ | M5: Q９ | N5: Q10 | O5: Q11 | P5: Q12 | Q5: Q13 | R5: Q14 | S5: Q15 | T5: 抽・整 | U5: 関・傾 | V5: 問題の設定 | W5: 全体
A6: =IF(C6="","",B6*100+C6) -> 301 | B6: =IF(C6="","",印刷!$D$3) -> ３ | C6: 1 | E6: 5 | F6: 4 | G6: 4 | H6: 4 | I6: 4 | J6: 4 | K6: 4 | L6: 4 | M6: 4 | N6: 4 | O6: 3 | P6: 3 | Q6: 3 | R6: 3 | S6: 3 | T6: =IF(COUNT(E6:K6)=0,"",AVERAGE(E6:K6)) -> 4.142857143 | U6: =IF(COUNT(K6:O6)=0,"",AVERAGE(K6:O6)) -> 3.8 | V6: =IF(COUNT(P6:S6)=0,"",AVERAGE(P6:S6)) -> 3 | W6: =IF(COUNT(E6:S6)=0,"",AVERAGE(E6:S6)) -> 3.733333333
A7: =IF(C7="","",B7*100+C7) -> 302 | B7: =IF(C7="","",印刷!$D$3) -> ３ | C7: 2 | E7: 5 | F7: 5 | G7: 5 | H7: 5 | I7: 5 | J7: 4 | K7: 4 | L7: 3 | M7: 4 | N7: 4 | O7: 4 | P7: 4 | Q7: 4 | R7: 3 | S7: 3 | T7: =IF(COUNT(E7:K7)=0,"",AVERAGE(E7:K7)) -> 4.714285714 | U7: =IF(COUNT(K7:O7)=0,"",AVERAGE(K7:O7)) -> 3.8 | V7: =IF(COUNT(P7:S7)=0,"",AVERAGE(P7:S7)) -> 3.5 | W7: =IF(COUNT(E7:S7)=0,"",AVERAGE(E7:S7)) -> 4.133333333
B8: =IF(C8="","",印刷!$D$3) -> 
B9: =IF(C9="","",印刷!$D$3) -> 
B10: =IF(C10="","",印刷!$D$3) -> 
B11: =IF(C11="","",印刷!$D$3) -> 
B12: =IF(C12="","",印刷!$D$3) -> 
B13: =IF(C13="","",印刷!$D$3) -> 
B14: =IF(C14="","",印刷!$D$3) -> 
B15: =IF(C15="","",印刷!$D$3) -> 
B16: =IF(C16="","",印刷!$D$3) -> 
B17: =IF(C17="","",印刷!$D$3) -> 
B18: =IF(C18="","",印刷!$D$3) -> 
B19: =IF(C19="","",印刷!$D$3) -> 
B20: =IF(C20="","",印刷!$D$3) -> 
B21: =IF(C21="","",印刷!$D$3) -> 
B22: =IF(C22="","",印刷!$D$3) -> 
B23: =IF(C23="","",印刷!$D$3) -> 
B24: =IF(C24="","",印刷!$D$3) -> 
B25: =IF(C25="","",印刷!$D$3) -> 
B26: =IF(C26="","",印刷!$D$3) -> 
B27: =IF(C27="","",印刷!$D$3) -> 
B28: =IF(C28="","",印刷!$D$3) -> 
B29: =IF(C29="","",印刷!$D$3) -> 
B30: =IF(C30="","",印刷!$D$3) -> 
B31: =IF(C31="","",印刷!$D$3) -> 
B32: =IF(C32="","",印刷!$D$3) -> 
B33: =IF(C33="","",印刷!$D$3) -> 
B34: =IF(C34="","",印刷!$D$3) -> 
B35: =IF(C35="","",印刷!$D$3) -> 
B36: =IF(C36="","",印刷!$D$3) -> 
B37: =IF(C37="","",印刷!$D$3) -> 
B38: =IF(C38="","",印刷!$D$3) -> 
B39: =IF(C39="","",印刷!$D$3) -> 
B40: =IF(C40="","",印刷!$D$3) -> 
B41: =IF(C41="","",印刷!$D$3) -> 
B42: =IF(C42="","",印刷!$D$3) -> 
B43: =IF(C43="","",印刷!$D$3) -> 
B44: =IF(C44="","",印刷!$D$3) -> 
B45: =IF(C45="","",印刷!$D$3) -> 
B46: =IF(C46="","",印刷!$D$3) -> 
B47: =IF(C47="","",印刷!$D$3) -> 
B48: =IF(C48="","",印刷!$D$3) -> 
B49: =IF(C49="","",印刷!$D$3) -> 
B50: =IF(C50="","",印刷!$D$3) -> 
A51: 999 | D51: 平均 | E51: =IF(COUNT(E6:E50)=0,"",AVERAGE(E6:E50)) -> 5 | F51: =IF(COUNT(F6:F50)=0,"",AVERAGE(F6:F50)) -> 4.5 | G51: 4.5 | H51: 4.5 | I51: 4.5 | J51: 4 | K51: 4 | L51: 3.5 | M51: 4 | N51: 4 | O51: 3.5 | P51: 3.5 | Q51: 3.5 | R51: 3 | S51: 3 | T51: 4.428571429 | U51: 3.8 | V51: 3.25 | W51: 3.933333333

Sheet ３回目
C2: 日時 | D2: 2025-11-15
C3: 単元 | D3: 音のせいしつ
C4: 節
A5: N0. | B5: 組 | C5: 番号 | D5: 氏 名 | E5: Q１ | F5: Q２ | G5: Q３ | H5: Q４ | I5: Q５ | J5: Q６ | K5: Q７ | L5: Q８ | M5: Q９ | N5: Q10 | O5: Q11 | P5: Q12 | Q5: Q13 | R5: Q14 | S5: Q15 | T5: 抽・整 | U5: 関・傾 | V5: 問題の設定 | W5: 全体
A6: =IF(C6="","",B6*100+C6) -> 301 | B6: =IF(C6="","",印刷!$D$3) -> ３ | C6: 1 | E6: 4 | F6: 4 | G6: 4 | H6: 4 | I6: 4 | J6: 3 | K6: 3 | L6: 3 | M6: 3 | N6: 3 | O6: 3 | P6: 3 | Q6: 3 | R6: 3 | S6: 3 | T6: =IF(COUNT(E6:K6)=0,"",AVERAGE(E6:K6)) -> 3.714285714 | U6: =IF(COUNT(K6:O6)=0,"",AVERAGE(K6:O6)) -> 3 | V6: =IF(COUNT(P6:S6)=0,"",AVERAGE(P6:S6)) -> 3 | W6: =IF(COUNT(E6:S6)=0,"",AVERAGE(E6:S6)) -> 3.333333333
A7: =IF(C7="","",B7*100+C7) -> 302 | B7: =IF(C7="","",印刷!$D$3) -> ３ | C7: 2 | E7: 5 | F7: 5 | G7: 5 | H7: 4 | I7: 4 | J7: 4 | K7: 4 | L7: 3 | M7: 4 | N7: 4 | O7: 4 | P7: 4 | Q7: 3 | R7: 4 | S7: 4 | T7: =IF(COUNT(E7:K7)=0,"",AVERAGE(E7:K7)) -> 4.428571429 | U7: =IF(COUNT(K7:O7)=0,"",AVERAGE(K7:O7)) -> 3.8 | V7: =IF(COUNT(P7:S7)=0,"",AVERAGE(P7:S7)) -> 3.75 | W7: =IF(COUNT(E7:S7)=0,"",AVERAGE(E7:S7)) -> 4.066666667
A8: 303 | B8: =IF(C8="","",印刷!$D$3) -> ３ | C8: 3
A9: 304 | B9: =IF(C9="","",印刷!$D$3) -> ３ | C9: 4
A10: 305 | B10: =IF(C10="","",印刷!$D$3) -> ３ | C10: 5
A11: 306 | B11: =IF(C11="","",印刷!$D$3) -> ３ | C11: 6
A12: 307 | B12: =IF(C12="","",印刷!$D$3) -> ３ | C12: 7
A13: 308 | B13: =IF(C13="","",印刷!$D$3) -> ３ | C13: 8
A14: 309 | B14: =IF(C14="","",印刷!$D$3) -> ３ | C14: 9
A15: 310 | B15: =IF(C15="","",印刷!$D$3) -> ３ | C15: 10
A16: 311 | B16: =IF(C16="","",印刷!$D$3) -> ３ | C16: 11
A17: 312 | B17: =IF(C17="","",印刷!$D$3) -> ３ | C17: 12
A18: 313 | B18: =IF(C18="","",印刷!$D$3) -> ３ | C18: 13
A19: 314 | B19: =IF(C19="","",印刷!$D$3) -> ３ | C19: 14
A20: 315 | B20: =IF(C20="","",印刷!$D$3) -> ３ | C20: 15
A21: 316 | B21: =IF(C21="","",印刷!$D$3) -> ３ | C21: 16
A22: 317 | B22: =IF(C22="","",印刷!$D$3) -> ３ | C22: 17
A23: 318 | B23: =IF(C23="","",印刷!$D$3) -> ３ | C23: 18
A24: 319 | B24: =IF(C24="","",印刷!$D$3) -> ３ | C24: 19
A25: 321 | B25: =IF(C25="","",印刷!$D$3) -> ３ | C25: 21
A26: 322 | B26: =IF(C26="","",印刷!$D$3) -> ３ | C26: 22
A27: 323 | B27: =IF(C27="","",印刷!$D$3) -> ３ | C27: 23
A28: 324 | B28: =IF(C28="","",印刷!$D$3) -> ３ | C28: 24
A29: 326 | B29: =IF(C29="","",印刷!$D$3) -> ３ | C29: 26
A30: 327 | B30: =IF(C30="","",印刷!$D$3) -> ３ | C30: 27
A31: 328 | B31: =IF(C31="","",印刷!$D$3) -> ３ | C31: 28
B32: =IF(C32="","",印刷!$D$3) -> 
B33: =IF(C33="","",印刷!$D$3) -> 
B34: =IF(C34="","",印刷!$D$3) -> 
B35: =IF(C35="","",印刷!$D$3) -> 
B36: =IF(C36="","",印刷!$D$3) -> 
B37: =IF(C37="","",印刷!$D$3) -> 
B38: =IF(C38="","",印刷!$D$3) -> 
B39: =IF(C39="","",印刷!$D$3) -> 
B40: =IF(C40="","",印刷!$D$3) -> 
B41: =IF(C41="","",印刷!$D$3) -> 
B42: =IF(C42="","",印刷!$D$3) -> 
B43: =IF(C43="","",印刷!$D$3) -> 
B44: =IF(C44="","",印刷!$D$3) -> 
B45: =IF(C45="","",印刷!$D$3) -> 
B46: =IF(C46="","",印刷!$D$3) -> 
B47: =IF(C47="","",印刷!$D$3) -> 
B48: =IF(C48="","",印刷!$D$3) -> 
B49: =IF(C49="","",印刷!$D$3) -> 
B50: =IF(C50="","",印刷!$D$3) -> 
A51: 999 | D51: 平均 | E51: =IF(COUNT(E6:E50)=0,"",AVERAGE(E6:E50)) -> 4.5 | F51: =IF(COUNT(F6:F50)=0,"",AVERAGE(F6:F50)) -> 4.5 | G51: 4.5 | H51: 4 | I51: 4 | J51: 3.5 | K51: 3.5 | L51: 3 | M51: 3.5 | N51: 3.5 | O51: 3.5 | P51: 3.5 | Q51: 3 | R51: 3.5 | S51: 3.5 | T51: 4.071428571 | U51: 3.4 | V51: 3.375 | W51: 3.7

Sheet ５回目
C2: 日時 | D2: 2026-01-30
C3: 単元 | D3: じしゃくのせいしつ
C4: 節
A5: N0. | B5: 組 | C5: 番号 | D5: 氏 名 | E5: Q１ | F5: Q２ | G5: Q３ | H5: Q４ | I5: Q５ | J5: Q６ | K5: Q７ | L5: Q８ | M5: Q９ | N5: Q10 | O5: Q11 | P5: Q12 | Q5: Q13 | R5: Q14 | S5: Q15 | T5: 抽・整 | U5: 関・傾 | V5: 問題の設定 | W5: 全体
A6: =IF(C6="","",B6*100+C6) -> 301 | B6: =IF(C6="","",印刷!$D$3) -> ３ | C6: 1 | E6: 5 | F6: 5 | G6: 5 | H6: 5 | I6: 5 | J6: 5 | K6: 5 | L6: 5 | M6: 5 | N6: 5 | O6: 5 | P6: 5 | Q6: 5 | R6: 5 | S6: 5 | T6: =IF(COUNT(E6:K6)=0,"",AVERAGE(E6:K6)) -> 5 | U6: =IF(COUNT(K6:O6)=0,"",AVERAGE(K6:O6)) -> 5 | V6: =IF(COUNT(P6:S6)=0,"",AVERAGE(P6:S6)) -> 5 | W6: =IF(COUNT(E6:S6)=0,"",AVERAGE(E6:S6)) -> 5
A7: =IF(C7="","",B7*100+C7) -> 302 | B7: =IF(C7="","",印刷!$D$3) -> ３ | C7: 2 | E7: 5 | F7: 5 | G7: 5 | H7: 5 | I7: 5 | J7: 5 | K7: 5 | L7: 4 | M7: 5 | N7: 5 | O7: 5 | P7: 4 | Q7: 4 | R7: 4 | S7: 4 | T7: =IF(COUNT(E7:K7)=0,"",AVERAGE(E7:K7)) -> 5 | U7: =IF(COUNT(K7:O7)=0,"",AVERAGE(K7:O7)) -> 4.8 | V7: =IF(COUNT(P7:S7)=0,"",AVERAGE(P7:S7)) -> 4 | W7: =IF(COUNT(E7:S7)=0,"",AVERAGE(E7:S7)) -> 4.666666667
B8: =IF(C8="","",印刷!$D$3) -> 
B9: =IF(C9="","",印刷!$D$3) -> 
B10: =IF(C10="","",印刷!$D$3) -> 
B11: =IF(C11="","",印刷!$D$3) -> 
B12: =IF(C12="","",印刷!$D$3) -> 
B13: =IF(C13="","",印刷!$D$3) -> 
B14: =IF(C14="","",印刷!$D$3) -> 
B15: =IF(C15="","",印刷!$D$3) -> 
B16: =IF(C16="","",印刷!$D$3) -> 
B17: =IF(C17="","",印刷!$D$3) -> 
B18: =IF(C18="","",印刷!$D$3) -> 
B19: =IF(C19="","",印刷!$D$3) -> 
B20: =IF(C20="","",印刷!$D$3) -> 
B21: =IF(C21="","",印刷!$D$3) -> 
B22: =IF(C22="","",印刷!$D$3) -> 
B23: =IF(C23="","",印刷!$D$3) -> 
B24: =IF(C24="","",印刷!$D$3) -> 
B25: =IF(C25="","",印刷!$D$3) -> 
B26: =IF(C26="","",印刷!$D$3) -> 
B27: =IF(C27="","",印刷!$D$3) -> 
B28: =IF(C28="","",印刷!$D$3) -> 
B29: =IF(C29="","",印刷!$D$3) -> 
B30: =IF(C30="","",印刷!$D$3) -> 
B31: =IF(C31="","",印刷!$D$3) -> 
B32: =IF(C32="","",印刷!$D$3) -> 
B33: =IF(C33="","",印刷!$D$3) -> 
B34: =IF(C34="","",印刷!$D$3) -> 
B35: =IF(C35="","",印刷!$D$3) -> 
B36: =IF(C36="","",印刷!$D$3) -> 
B37: =IF(C37="","",印刷!$D$3) -> 
B38: =IF(C38="","",印刷!$D$3) -> 
B39: =IF(C39="","",印刷!$D$3) -> 
B40: =IF(C40="","",印刷!$D$3) -> 
B41: =IF(C41="","",印刷!$D$3) -> 
B42: =IF(C42="","",印刷!$D$3) -> 
B43: =IF(C43="","",印刷!$D$3) -> 
B44: =IF(C44="","",印刷!$D$3) -> 
B45: =IF(C45="","",印刷!$D$3) -> 
B46: =IF(C46="","",印刷!$D$3) -> 
B47: =IF(C47="","",印刷!$D$3) -> 
B48: =IF(C48="","",印刷!$D$3) -> 
B49: =IF(C49="","",印刷!$D$3) -> 
B50: =IF(C50="","",印刷!$D$3) -> 
A51: 999 | D51: 平均 | E51: =IF(COUNT(E6:E50)=0,"",AVERAGE(E6:E50)) -> 5 | F51: =IF(COUNT(F6:F50)=0,"",AVERAGE(F6:F50)) -> 5 | G51: 5 | H51: 5 | I51: 5 | J51: 5 | K51: 5 | L51: 4.5 | M51: 5 | N51: 5 | O51: 5 | P51: 4.5 | Q51: 4.5 | R51: 4.5 | S51: 4.5 | T51: 5 | U51: 4.9 | V51: 4.5 | W51: 4.833333333

Sheet データ (hidden)
AM2: 個人 | AT2: クラス全体
B3: 回数 単元名 | D3: 実施日 | E3: Q１ | F3: Q２ | G3: Q３ | H3: Q４ | I3: Q５ | J3: Q６ | K3: Q７ | L3: Q８ | M3: Q９ | N3: Q10 | O3: Q11 | P3: Q12 | Q3: Q13 | R3: Q14 | S3: Q15 | V3: 日にち | W3: Q１ | X3: Q２ | Y3: Q３ | Z3: Q４ | AA3: Q５ | AB3: Q６ | AC3: Q７ | AD3: Q８ | AE3: Q９ | AF3: Q10 | AG3: Q11 | AH3: Q12 | AI3: Q13 | AJ3: Q14 | AK3: Q15 | AN3: 抽出・整理 | AO3: 関係性や傾向 | AP3: 問題の設定 | AQ3: 全体 | AT3: 回数 単元名 | AV3: 実施日 | AW3: 抽出・整理 | AX3: 関係性や傾向 | AY3: 問題の設定 | AZ3: 全体
B4: =IF('１回目'!$D$3="","","１回目"&" 『"&'１回目'!$D$3&"』") -> １回目 『単元なし』 | D4: =IF('１回目'!$D$2="","",'１回目'!$D$2) -> 2025-09-07 | E4: =IF('１回目'!E$51="","",'１回目'!E$51) -> 3.5 | F4: =IF('１回目'!F$51="","",'１回目'!F$51) -> 3.5 | G4: =IF('１回目'!G$51="","",'１回目'!G$51) -> 3 | H4: =IF('１回目'!H$51="","",'１回目'!H$51) -> 3 | I4: =IF('１回目'!I$51="","",'１回目'!I$51) -> 3 | J4: =IF('１回目'!J$51="","",'１回目'!J$51) -> 3 | K4: =IF('１回目'!K$51="","",'１回目'!K$51) -> 3 | L4: =IF('１回目'!L$51="","",'１回目'!L$51) -> 2.5 | M4: =IF('１回目'!M$51="","",'１回目'!M$51) -> 3 | N4: =IF('１回目'!N$51="","",'１回目'!N$51) -> 3 | O4: =IF('１回目'!O$51="","",'１回目'!O$51) -> 3 | P4: =IF('１回目'!P$51="","",'１回目'!P$51) -> 3 | Q4: =IF('１回目'!Q$51="","",'１回目'!Q$51) -> 3 | R4: =IF('１回目'!R$51="","",'１回目'!R$51) -> 3 | S4: =IF('１回目'!S$51="","",'１回目'!S$51) -> 3 | U4: １回目 | V4: =IF('１回目'!$D$2="","",'１回目'!$D$2) -> 2025-09-07 | W4: =IF(VLOOKUP(印刷!$B$6,'１回目'!$A$5:$W$50,5,FALSE)="","",VLOOKUP(印刷!$B$6,'１回目'!$A$5:$W$50,5,FALSE)) -> 4 | X4: =IF(VLOOKUP(印刷!$B$6,'１回目'!$A$5:$W$50,6,FALSE)="","",VLOOKUP(印刷!$B$6,'１回目'!$A$5:$W$50,6,FALSE)) -> 4 | Y4: =IF(VLOOKUP(印刷!$B$6,'１回目'!$A$5:$W$50,7,FALSE)="","",VLOOKUP(印刷!$B$6,'１回目'!$A$5:$W$50,7,FALSE)) -> 3 | Z4: =IF(VLOOKUP(印刷!$B$6,'１回目'!$A$5:$W$50,8,FALSE)="","",VLOOKUP(印刷!$B$6,'１回目'!$A$5:$W$50,8,FALSE)) -> 3 | AA4: =IF(VLOOKUP(印刷!$B$6,'１回目'!$A$5:$W$50,9,FALSE)="","",VLOOKUP(印刷!$B$6,'１回目'!$A$5:$W$50,9,FALSE)) -> 3 | AB4: =IF(VLOOKUP(印刷!$B$6,'１回目'!$A$5:$W$50,10,FALSE)="","",VLOOKUP(印刷!$B$6,'１回目'!$A$5:$W$50,10,FALSE)) -> 3 | AC4: =IF(VLOOKUP(印刷!$B$6,'１回目'!$A$5:$W$50,11,FALSE)="","",VLOOKUP(印刷!$B$6,'１回目'!$A$5:$W$50,11,FALSE)) -> 3 | AD4: =IF(VLOOKUP(印刷!$B$6,'１回目'!$A$5:$W$50,12,FALSE)="","",VLOOKUP(印刷!$B$6,'１回目'!$A$5:$W$50,12,FALSE)) -> 2 | AE4: =IF(VLOOKUP(印刷!$B$6,'１回目'!$A$5:$W$50,13,FALSE)="","",VLOOKUP(印刷!$B$6,'１回目'!$A$5:$W$50,13,FALSE)) -> 3 | AF4: =IF(VLOOKUP(印刷!$B$6,'１回目'!$A$5:$W$50,14,FALSE)="","",VLOOKUP(印刷!$B$6,'１回目'!$A$5:$W$50,14,FALSE)) -> 3 | AG4: =IF(VLOOKUP(印刷!$B$6,'１回目'!$A$5:$W$50,15,FALSE)="","",VLOOKUP(印刷!$B$6,'１回目'!$A$5:$W$50,15,FALSE)) -> 3 | AH4: =IF(VLOOKUP(印刷!$B$6,'１回目'!$A$5:$W$50,16,FALSE)="","",VLOOKUP(印刷!$B$6,'１回目'!$A$5:$W$50,16,FALSE)) -> 3 | AI4: =IF(VLOOKUP(印刷!$B$6,'１回目'!$A$5:$W$50,17,FALSE)="","",VLOOKUP(印刷!$B$6,'１回目'!$A$5:$W$50,17,FALSE)) -> 3 | AJ4: =IF(VLOOKUP(印刷!$B$6,'１回目'!$A$5:$W$50,18,FALSE)="","",VLOOKUP(印刷!$B$6,'１回目'!$A$5:$W$50,18,FALSE)) -> 3 | AK4: =IF(VLOOKUP(印刷!$B$6,'１回目'!$A$5:$W$50,19,FALSE)="","",VLOOKUP(印刷!$B$6,'１回目'!$A$5:$W$50,19,FALSE)) -> 3 | AM4: １回目 | AN4: =IF(VLOOKUP(印刷!$B$6,'１回目'!$A$5:$W$50,20,FALSE)="","",VLOOKUP(印刷!$B$6,'１回目'!$A$5:$W$50,20,FALSE)) -> 3.285714286 | AO4: =IF(VLOOKUP(印刷!$B$6,'１回目'!$A$5:$W$50,21,FALSE)="","",VLOOKUP(印刷!$B$6,'１回目'!$A$5:$W$50,21,FALSE)) -> 2.8 | AP4: =IF(VLOOKUP(印刷!$B$6,'１回目'!$A$5:$W$50,22,FALSE)="","",VLOOKUP(印刷!$B$6,'１回目'!$A$5:$W$50,22,FALSE)) -> 3 | AQ4: =IF(VLOOKUP(印刷!$B$6,'１回目'!$A$5:$W$50,23,FALSE)="","",VLOOKUP(印刷!$B$6,'１回目'!$A$5:$W$50,23,FALSE)) -> 3.066666667 | AT4: =IF('１回目'!$D$3="","","１回目"&" 『"&'１回目'!$D$3&"』") -> １回目 『単元なし』 | AV4: =IF('１回目'!$D$2="","",'１回目'!$D$2) -> 2025-09-07 | AW4: =IF('１回目'!$T$51="","",'１回目'!$T$51) -> 3.142857143 | AX4: =IF('１回目'!$U$51="","",'１回目'!$U$51) -> 2.9 | AY4: =IF('１回目'!$V$51="","",'１回目'!$V$51) -> 3 | AZ4: =IF('１回目'!$W$51="","",'１回目'!$W$51) -> 3.033333333
B5: =IF('２回目'!$D$3="","","２回目"&" 『"&'２回目'!$D$3&"』") -> ２回目 『こん虫のかんさつ』 | D5: =IF('２回目'!$D$2="","",'２回目'!$D$2) -> 2025-09-15 | E5: =IF('２回目'!E$51="","",'２回目'!E$51) -> 4.5 | F5: =IF('２回目'!F$51="","",'２回目'!F$51) -> 4 | G5: =IF('２回目'!G$51="","",'２回目'!G$51) -> 4 | H5: =IF('２回目'!H$51="","",'２回目'!H$51) -> 4 | I5: =IF('２回目'!I$51="","",'２回目'!I$51) -> 4 | J5: =IF('２回目'!J$51="","",'２回目'!J$51) -> 3 | K5: =IF('２回目'!K$51="","",'２回目'!K$51) -> 3 | L5: =IF('２回目'!L$51="","",'２回目'!L$51) -> 2.5 | M5: =IF('２回目'!M$51="","",'２回目'!M$51) -> 3 | N5: =IF('２回目'!N$51="","",'２回目'!N$51) -> 3 | O5: =IF('２回目'!O$51="","",'２回目'!O$51) -> 3 | P5: =IF('２回目'!P$51="","",'２回目'!P$51) -> 3 | Q5: =IF('２回目'!Q$51="","",'２回目'!Q$51) -> 3 | R5: =IF('２回目'!R$51="","",'２回目'!R$51) -> 3 | S5: =IF('２回目'!S$51="","",'２回目'!S$51) -> 3 | U5: ２回目 | V5: =IF('２回目'!$D$2="","",'２回目'!$D$2) -> 2025-09-15 | W5: =IF(VLOOKUP(印刷!$B$6,'２回目'!$A$5:$W$50,5,FALSE)="","",VLOOKUP(印刷!$B$6,'２回目'!$A$5:$W$50,5,FALSE)) -> 5 | X5: =IF(VLOOKUP(印刷!$B$6,'２回目'!$A$5:$W$50,6,FALSE)="","",VLOOKUP(印刷!$B$6,'２回目'!$A$5:$W$50,6,FALSE)) -> 4 | Y5: =IF(VLOOKUP(印刷!$B$6,'２回目'!$A$5:$W$50,7,FALSE)="","",VLOOKUP(印刷!$B$6,'２回目'!$A$5:$W$50,7,FALSE)) -> 4 | Z5: =IF(VLOOKUP(印刷!$B$6,'２回目'!$A$5:$W$50,8,FALSE)="","",VLOOKUP(印刷!$B$6,'２回目'!$A$5:$W$50,8,FALSE)) -> 4 | AA5: =IF(VLOOKUP(印刷!$B$6,'２回目'!$A$5:$W$50,9,FALSE)="","",VLOOKUP(印刷!$B$6,'２回目'!$A$5:$W$50,9,FALSE)) -> 4 | AB5: =IF(VLOOKUP(印刷!$B$6,'２回目'!$A$5:$W$50,10,FALSE)="","",VLOOKUP(印刷!$B$6,'２回目'!$A$5:$W$50,10,FALSE)) -> 3 | AC5: =IF(VLOOKUP(印刷!$B$6,'２回目'!$A$5:$W$50,11,FALSE)="","",VLOOKUP(印刷!$B$6,'２回目'!$A$5:$W$50,11,FALSE)) -> 3 | AD5: =IF(VLOOKUP(印刷!$B$6,'２回目'!$A$5:$W$50,12,FALSE)="","",VLOOKUP(印刷!$B$6,'２回目'!$A$5:$W$50,12,FALSE)) -> 2 | AE5: =IF(VLOOKUP(印刷!$B$6,'２回目'!$A$5:$W$50,13,FALSE)="","",VLOOKUP(印刷!$B$6,'２回目'!$A$5:$W$50,13,FALSE)) -> 3 | AF5: =IF(VLOOKUP(印刷!$B$6,'２回目'!$A$5:$W$50,14,FALSE)="","",VLOOKUP(印刷!$B$6,'２回目'!$A$5:$W$50,14,FALSE)) -> 3 | AG5: =IF(VLOOKUP(印刷!$B$6,'２回目'!$A$5:$W$50,15,FALSE)="","",VLOOKUP(印刷!$B$6,'２回目'!$A$5:$W$50,15,FALSE)) -> 3 | AH5: =IF(VLOOKUP(印刷!$B$6,'２回目'!$A$5:$W$50,16,FALSE)="","",VLOOKUP(印刷!$B$6,'２回目'!$A$5:$W$50,16,FALSE)) -> 3 | AI5: =IF(VLOOKUP(印刷!$B$6,'２回目'!$A$5:$W$50,17,FALSE)="","",VLOOKUP(印刷!$B$6,'２回目'!$A$5:$W$50,17,FALSE)) -> 3 | AJ5: =IF(VLOOKUP(印刷!$B$6,'２回目'!$A$5:$W$50,18,FALSE)="","",VLOOKUP(印刷!$B$6,'２回目'!$A$5:$W$50,18,FALSE)) -> 3 | AK5: =IF(VLOOKUP(印刷!$B$6,'２回目'!$A$5:$W$50,19,FALSE)="","",VLOOKUP(印刷!$B$6,'２回目'!$A$5:$W$50,19,FALSE)) -> 3 | AM5: ２回目 | AN5: =IF(VLOOKUP(印刷!$B$6,'２回目'!$A$5:$W$50,20,FALSE)="","",VLOOKUP(印刷!$B$6,'２回目'!$A$5:$W$50,20,FALSE)) -> 3.857142857 | AO5: =IF(VLOOKUP(印刷!$B$6,'２回目'!$A$5:$W$50,21,FALSE)="","",VLOOKUP(印刷!$B$6,'２回目'!$A$5:$W$50,21,FALSE)) -> 2.8 | AP5: =IF(VLOOKUP(印刷!$B$6,'２回目'!$A$5:$W$50,22,FALSE)="","",VLOOKUP(印刷!$B$6,'２回目'!$A$5:$W$50,22,FALSE)) -> 3 | AQ5: =IF(VLOOKUP(印刷!$B$6,'２回目'!$A$5:$W$50,23,FALSE)="","",VLOOKUP(印刷!$B$6,'２回目'!$A$5:$W$50,23,FALSE)) -> 3.333333333 | AT5: =IF('２回目'!$D$3="","","２回目"&" 『"&'２回目'!$D$3&"』") -> ２回目 『こん虫のかんさつ』 | AV5: =IF('２回目'!$D$2="","",'２回目'!$D$2) -> 2025-09-15 | AW5: =IF('２回目'!$T$51="","",'２回目'!$T$51) -> 3.785714286 | AX5: =IF('２回目'!$U$51="","",'２回目'!$U$51) -> 2.9 | AY5: =IF('２回目'!$V$51="","",'２回目'!$V$51) -> 3 | AZ5: =IF('２回目'!$W$51="","",'２回目'!$W$51) -> 3.333333333
B6: =IF('３回目'!$D$3="","","３回目"&" 『"&'３回目'!$D$3&"』") -> ３回目 『音のせいしつ』 | D6: =IF('３回目'!$D$2="","",'３回目'!$D$2) -> 2025-11-15 | E6: =IF('３回目'!E$51="","",'３回目'!E$51) -> 4.5 | F6: =IF('３回目'!F$51="","",'３回目'!F$51) -> 4.5 | G6: =IF('３回目'!G$51="","",'３回目'!G$51) -> 4.5 | H6: =IF('３回目'!H$51="","",'３回目'!H$51) -> 4 | I6: =IF('３回目'!I$51="","",'３回目'!I$51) -> 4 | J6: =IF('３回目'!J$51="","",'３回目'!J$51) -> 3.5 | K6: =IF('３回目'!K$51="","",'３回目'!K$51) -> 3.5 | L6: =IF('３回目'!L$51="","",'３回目'!L$51) -> 3 | M6: =IF('３回目'!M$51="","",'３回目'!M$51) -> 3.5 | N6: =IF('３回目'!N$51="","",'３回目'!N$51) -> 3.5 | O6: =IF('３回目'!O$51="","",'３回目'!O$51) -> 3.5 | P6: =IF('３回目'!P$51="","",'３回目'!P$51) -> 3.5 | Q6: =IF('３回目'!Q$51="","",'３回目'!Q$51) -> 3 | R6: =IF('３回目'!R$51="","",'３回目'!R$51) -> 3.5 | S6: =IF('３回目'!S$51="","",'３回目'!S$51) -> 3.5 | U6: ３回目 | V6: =IF('３回目'!$D$2="","",'３回目'!$D$2) -> 2025-11-15 | W6: =IF(VLOOKUP(印刷!$B$6,'３回目'!$A$5:$W$50,5,FALSE)="","",VLOOKUP(印刷!$B$6,'３回目'!$A$5:$W$50,5,FALSE)) -> 5 | X6: =IF(VLOOKUP(印刷!$B$6,'３回目'!$A$5:$W$50,6,FALSE)="","",VLOOKUP(印刷!$B$6,'３回目'!$A$5:$W$50,6,FALSE)) -> 5 | Y6: =IF(VLOOKUP(印刷!$B$6,'３回目'!$A$5:$W$50,7,FALSE)="","",VLOOKUP(印刷!$B$6,'３回目'!$A$5:$W$50,7,FALSE)) -> 5 | Z6: =IF(VLOOKUP(印刷!$B$6,'３回目'!$A$5:$W$50,8,FALSE)="","",VLOOKUP(印刷!$B$6,'３回目'!$A$5:$W$50,8,FALSE)) -> 4 | AA6: =IF(VLOOKUP(印刷!$B$6,'３回目'!$A$5:$W$50,9,FALSE)="","",VLOOKUP(印刷!$B$6,'３回目'!$A$5:$W$50,9,FALSE)) -> 4 | AB6: =IF(VLOOKUP(印刷!$B$6,'３回目'!$A$5:$W$50,10,FALSE)="","",VLOOKUP(印刷!$B$6,'３回目'!$A$5:$W$50,10,FALSE)) -> 4 | AC6: =IF(VLOOKUP(印刷!$B$6,'３回目'!$A$5:$W$50,11,FALSE)="","",VLOOKUP(印刷!$B$6,'３回目'!$A$5:$W$50,11,FALSE)) -> 4 | AD6: =IF(VLOOKUP(印刷!$B$6,'３回目'!$A$5:$W$50,12,FALSE)="","",VLOOKUP(印刷!$B$6,'３回目'!$A$5:$W$50,12,FALSE)) -> 3 | AE6: =IF(VLOOKUP(印刷!$B$6,'３回目'!$A$5:$W$50,13,FALSE)="","",VLOOKUP(印刷!$B$6,'３回目'!$A$5:$W$50,13,FALSE)) -> 4 | AF6: =IF(VLOOKUP(印刷!$B$6,'３回目'!$A$5:$W$50,14,FALSE)="","",VLOOKUP(印刷!$B$6,'３回目'!$A$5:$W$50,14,FALSE)) -> 4 | AG6: =IF(VLOOKUP(印刷!$B$6,'３回目'!$A$5:$W$50,15,FALSE)="","",VLOOKUP(印刷!$B$6,'３回目'!$A$5:$W$50,15,FALSE)) -> 4 | AH6: =IF(VLOOKUP(印刷!$B$6,'３回目'!$A$5:$W$50,16,FALSE)="","",VLOOKUP(印刷!$B$6,'３回目'!$A$5:$W$50,16,FALSE)) -> 4 | AI6: =IF(VLOOKUP(印刷!$B$6,'３回目'!$A$5:$W$50,17,FALSE)="","",VLOOKUP(印刷!$B$6,'３回目'!$A$5:$W$50,17,FALSE)) -> 3 | AJ6: =IF(VLOOKUP(印刷!$B$6,'３回目'!$A$5:$W$50,18,FALSE)="","",VLOOKUP(印刷!$B$6,'３回目'!$A$5:$W$50,18,FALSE)) -> 4 | AK6: =IF(VLOOKUP(印刷!$B$6,'３回目'!$A$5:$W$50,19,FALSE)="","",VLOOKUP(印刷!$B$6,'３回目'!$A$5:$W$50,19,FALSE)) -> 4 | AM6: ３回目 | AN6: =IF(VLOOKUP(印刷!$B$6,'３回目'!$A$5:$W$50,20,FALSE)="","",VLOOKUP(印刷!$B$6,'３回目'!$A$5:$W$50,20,FALSE)) -> 4.428571429 | AO6: =IF(VLOOKUP(印刷!$B$6,'３回目'!$A$5:$W$50,21,FALSE)="","",VLOOKUP(印刷!$B$6,'３回目'!$A$5:$W$50,21,FALSE)) -> 3.8 | AP6: =IF(VLOOKUP(印刷!$B$6,'３回目'!$A$5:$W$50,22,FALSE)="","",VLOOKUP(印刷!$B$6,'３回目'!$A$5:$W$50,22,FALSE)) -> 3.75 | AQ6: =IF(VLOOKUP(印刷!$B$6,'３回目'!$A$5:$W$50,23,FALSE)="","",VLOOKUP(印刷!$B$6,'３回目'!$A$5:$W$50,23,FALSE)) -> 4.066666667 | AT6: =IF('３回目'!$D$3="","","３回目"&" 『"&'３回目'!$D$3&"』") -> ３回目 『音のせいしつ』 | AV6: =IF('３回目'!$D$2="","",'３回目'!$D$2) -> 2025-11-15 | AW6: =IF('３回目'!$T$51="","",'３回目'!$T$51) -> 4.071428571 | AX6: =IF('３回目'!$U$51="","",'３回目'!$U$51) -> 3.4 | AY6: =IF('３回目'!$V$51="","",'３回目'!$V$51) -> 3.375 | AZ6: =IF('３回目'!$W$51="","",'３回目'!$W$51) -> 3.7
B7: =IF('４回目'!$D$3="","","４回目"&" 『"&'４回目'!$D$3&"』") -> ４回目 『物の重さ』 | D7: =IF('４回目'!$D$2="","",'４回目'!$D$2) -> 2025-12-01 | E7: =IF('４回目'!E$51="","",'４回目'!E$51) -> 5 | F7: =IF('４回目'!F$51="","",'４回目'!F$51) -> 4.5 | G7: =IF('４回目'!G$51="","",'４回目'!G$51) -> 4.5 | H7: =IF('４回目'!H$51="","",'４回目'!H$51) -> 4.5 | I7: =IF('４回目'!I$51="","",'４回目'!I$51) -> 4.5 | J7: =IF('４回目'!J$51="","",'４回目'!J$51) -> 4 | K7: =IF('４回目'!K$51="","",'４回目'!K$51) -> 4 | L7: =IF('４回目'!L$51="","",'４回目'!L$51) -> 3.5 | M7: =IF('４回目'!M$51="","",'４回目'!M$51) -> 4 | N7: =IF('４回目'!N$51="","",'４回目'!N$51) -> 4 | O7: =IF('４回目'!O$51="","",'４回目'!O$51) -> 3.5 | P7: =IF('４回目'!P$51="","",'４回目'!P$51) -> 3.5 | Q7: =IF('４回目'!Q$51="","",'４回目'!Q$51) -> 3.5 | R7: =IF('４回目'!R$51="","",'４回目'!R$51) -> 3 | S7: =IF('４回目'!S$51="","",'４回目'!S$51) -> 3 | U7: ４回目 | V7: =IF('４回目'!$D$2="","",'４回目'!$D$2) -> 2025-12-01 | W7: =IF(VLOOKUP(印刷!$B$6,'４回目'!$A$5:$W$50,5,FALSE)="","",VLOOKUP(印刷!$B$6,'４回目'!$A$5:$W$50,5,FALSE)) -> 5 | X7: =IF(VLOOKUP(印刷!$B$6,'４回目'!$A$5:$W$50,6,FALSE)="","",VLOOKUP(印刷!$B$6,'４回目'!$A$5:$W$50,6,FALSE)) -> 5 | Y7: =IF(VLOOKUP(印刷!$B$6,'４回目'!$A$5:$W$50,7,FALSE)="","",VLOOKUP(印刷!$B$6,'４回目'!$A$5:$W$50,7,FALSE)) -> 5 | Z7: =IF(VLOOKUP(印刷!$B$6,'４回目'!$A$5:$W$50,8,FALSE)="","",VLOOKUP(印刷!$B$6,'４回目'!$A$5:$W$50,8,FALSE)) -> 5 | AA7: =IF(VLOOKUP(印刷!$B$6,'４回目'!$A$5:$W$50,9,FALSE)="","",VLOOKUP(印刷!$B$6,'４回目'!$A$5:$W$50,9,FALSE)) -> 5 | AB7: =IF(VLOOKUP(印刷!$B$6,'４回目'!$A$5:$W$50,10,FALSE)="","",VLOOKUP(印刷!$B$6,'４回目'!$A$5:$W$50,10,FALSE)) -> 4 | AC7: =IF(VLOOKUP(印刷!$B$6,'４回目'!$A$5:$W$50,11,FALSE)="","",VLOOKUP(印刷!$B$6,'４回目'!$A$5:$W$50,11,FALSE)) -> 4 | AD7: =IF(VLOOKUP(印刷!$B$6,'４回目'!$A$5:$W$50,12,FALSE)="","",VLOOKUP(印刷!$B$6,'４回目'!$A$5:$W$50,12,FALSE)) -> 3 | AE7: =IF(VLOOKUP(印刷!$B$6,'４回目'!$A$5:$W$50,13,FALSE)="","",VLOOKUP(印刷!$B$6,'４回目'!$A$5:$W$50,13,FALSE)) -> 4 | AF7: =IF(VLOOKUP(印刷!$B$6,'４回目'!$A$5:$W$50,14,FALSE)="","",VLOOKUP(印刷!$B$6,'４回目'!$A$5:$W$50,14,FALSE)) -> 4 | AG7: =IF(VLOOKUP(印刷!$B$6,'４回目'!$A$5:$W$50,15,FALSE)="","",VLOOKUP(印刷!$B$6,'４回目'!$A$5:$W$50,15,FALSE)) -> 4 | AH7: =IF(VLOOKUP(印刷!$B$6,'４回目'!$A$5:$W$50,16,FALSE)="","",VLOOKUP(印刷!$B$6,'４回目'!$A$5:$W$50,16,FALSE)) -> 4 | AI7: =IF(VLOOKUP(印刷!$B$6,'４回目'!$A$5:$W$50,17,FALSE)="","",VLOOKUP(印刷!$B$6,'４回目'!$A$5:$W$50,17,FALSE)) -> 4 | AJ7: =IF(VLOOKUP(印刷!$B$6,'４回目'!$A$5:$W$50,18,FALSE)="","",VLOOKUP(印刷!$B$6,'４回目'!$A$5:$W$50,18,FALSE)) -> 3 | AK7: =IF(VLOOKUP(印刷!$B$6,'４回目'!$A$5:$W$50,19,FALSE)="","",VLOOKUP(印刷!$B$6,'４回目'!$A$5:$W$50,19,FALSE)) -> 3 | AM7: ４回目 | AN7: =IF(VLOOKUP(印刷!$B$6,'４回目'!$A$5:$W$50,20,FALSE)="","",VLOOKUP(印刷!$B$6,'４回目'!$A$5:$W$50,20,FALSE)) -> 4.714285714 | AO7: =IF(VLOOKUP(印刷!$B$6,'４回目'!$A$5:$W$50,21,FALSE)="","",VLOOKUP(印刷!$B$6,'４回目'!$A$5:$W$50,21,FALSE)) -> 3.8 | AP7: =IF(VLOOKUP(印刷!$B$6,'４回目'!$A$5:$W$50,22,FALSE)="","",VLOOKUP(印刷!$B$6,'４回目'!$A$5:$W$50,22,FALSE)) -> 3.5 | AQ7: =IF(VLOOKUP(印刷!$B$6,'４回目'!$A$5:$W$50,23,FALSE)="","",VLOOKUP(印刷!$B$6,'４回目'!$A$5:$W$50,23,FALSE)) -> 4.133333333 | AT7: =IF('４回目'!$D$3="","","４回目"&" 『"&'４回目'!$D$3&"』") -> ４回目 『物の重さ』 | AV7: =IF('４回目'!$D$2="","",'４回目'!$D$2) -> 2025-12-01 | AW7: =IF('４回目'!$T$51="","",'４回目'!$T$51) -> 4.428571429 | AX7: =IF('４回目'!$U$51="","",'４回目'!$U$51) -> 3.8 | AY7: =IF('４回目'!$V$51="","",'４回目'!$V$51) -> 3.25 | AZ7: =IF('４回目'!$W$51="","",'４回目'!$W$51) -> 3.933333333
B8: =IF('５回目'!$D$3="","","５回目"&" 『"&'５回目'!$D$3&"』") -> ５回目 『じしゃくのせいしつ』 | D8: =IF('５回目'!$D$2="","",'５回目'!$D$2) -> 2026-01-30 | E8: =IF('５回目'!E$51="","",'５回目'!E$51) -> 5 | F8: =IF('５回目'!F$51="","",'５回目'!F$51) -> 5 | G8: =IF('５回目'!G$51="","",'５回目'!G$51) -> 5 | H8: =IF('５回目'!H$51="","",'５回目'!H$51) -> 5 | I8: =IF('５回目'!I$51="","",'５回目'!I$51) -> 5 | J8: =IF('５回目'!J$51="","",'５回目'!J$51) -> 5 | K8: =IF('５回目'!K$51="","",'５回目'!K$51) -> 5 | L8: =IF('５回目'!L$51="","",'５回目'!L$51) -> 4.5 | M8: =IF('５回目'!M$51="","",'５回目'!M$51) -> 5 | N8: =IF('５回目'!N$51="","",'５回目'!N$51) -> 5 | O8: =IF('５回目'!O$51="","",'５回目'!O$51) -> 5 | P8: =IF('５回目'!P$51="","",'５回目'!P$51) -> 4.5 | Q8: =IF('５回目'!Q$51="","",'５回目'!Q$51) -> 4.5 | R8: =IF('５回目'!R$51="","",'５回目'!R$51) -> 4.5 | S8: =IF('５回目'!S$51="","",'５回目'!S$51) -> 4.5 | U8: ５回目 | V8: =IF('５回目'!$D$2="","",'５回目'!$D$2) -> 2026-01-30 | W8: =IF(VLOOKUP(印刷!$B$6,'５回目'!$A$5:$W$50,5,FALSE)="","",VLOOKUP(印刷!$B$6,'５回目'!$A$5:$W$50,5,FALSE)) -> 5 | X8: =IF(VLOOKUP(印刷!$B$6,'５回目'!$A$5:$W$50,6,FALSE)="","",VLOOKUP(印刷!$B$6,'５回目'!$A$5:$W$50,6,FALSE)) -> 5 | Y8: =IF(VLOOKUP(印刷!$B$6,'５回目'!$A$5:$W$50,7,FALSE)="","",VLOOKUP(印刷!$B$6,'５回目'!$A$5:$W$50,7,FALSE)) -> 5 | Z8: =IF(VLOOKUP(印刷!$B$6,'５回目'!$A$5:$W$50,8,FALSE)="","",VLOOKUP(印刷!$B$6,'５回目'!$A$5:$W$50,8,FALSE)) -> 5 | AA8: =IF(VLOOKUP(印刷!$B$6,'５回目'!$A$5:$W$50,9,FALSE)="","",VLOOKUP(印刷!$B$6,'５回目'!$A$5:$W$50,9,FALSE)) -> 5 | AB8: =IF(VLOOKUP(印刷!$B$6,'５回目'!$A$5:$W$50,10,FALSE)="","",VLOOKUP(印刷!$B$6,'５回目'!$A$5:$W$50,10,FALSE)) -> 5 | AC8: =IF(VLOOKUP(印刷!$B$6,'５回目'!$A$5:$W$50,11,FALSE)="","",VLOOKUP(印刷!$B$6,'５回目'!$A$5:$W$50,11,FALSE)) -> 5 | AD8: =IF(VLOOKUP(印刷!$B$6,'５回目'!$A$5:$W$50,12,FALSE)="","",VLOOKUP(印刷!$B$6,'５回目'!$A$5:$W$50,12,FALSE)) -> 4 | AE8: =IF(VLOOKUP(印刷!$B$6,'５回目'!$A$5:$W$50,13,FALSE)="","",VLOOKUP(印刷!$B$6,'５回目'!$A$5:$W$50,13,FALSE)) -> 5 | AF8: =IF(VLOOKUP(印刷!$B$6,'５回目'!$A$5:$W$50,14,FALSE)="","",VLOOKUP(印刷!$B$6,'５回目'!$A$5:$W$50,14,FALSE)) -> 5 | AG8: =IF(VLOOKUP(印刷!$B$6,'５回目'!$A$5:$W$50,15,FALSE)="","",VLOOKUP(印刷!$B$6,'５回目'!$A$5:$W$50,15,FALSE)) -> 5 | AH8: =IF(VLOOKUP(印刷!$B$6,'５回目'!$A$5:$W$50,16,FALSE)="","",VLOOKUP(印刷!$B$6,'５回目'!$A$5:$W$50,16,FALSE)) -> 4 | AI8: =IF(VLOOKUP(印刷!$B$6,'５回目'!$A$5:$W$50,17,FALSE)="","",VLOOKUP(印刷!$B$6,'５回目'!$A$5:$W$50,17,FALSE)) -> 4 | AJ8: =IF(VLOOKUP(印刷!$B$6,'５回目'!$A$5:$W$50,18,FALSE)="","",VLOOKUP(印刷!$B$6,'５回目'!$A$5:$W$50,18,FALSE)) -> 4 | AK8: =IF(VLOOKUP(印刷!$B$6,'５回目'!$A$5:$W$50,19,FALSE)="","",VLOOKUP(印刷!$B$6,'５回目'!$A$5:$W$50,19,FALSE)) -> 4 | AM8: ５回目 | AN8: =IF(VLOOKUP(印刷!$B$6,'５回目'!$A$5:$W$50,20,FALSE)="","",VLOOKUP(印刷!$B$6,'５回目'!$A$5:$W$50,20,FALSE)) -> 5 | AO8: =IF(VLOOKUP(印刷!$B$6,'５回目'!$A$5:$W$50,21,FALSE)="","",VLOOKUP(印刷!$B$6,'５回目'!$A$5:$W$50,21,FALSE)) -> 4.8 | AP8: =IF(VLOOKUP(印刷!$B$6,'５回目'!$A$5:$W$50,22,FALSE)="","",VLOOKUP(印刷!$B$6,'５回目'!$A$5:$W$50,22,FALSE)) -> 4 | AQ8: =IF(VLOOKUP(印刷!$B$6,'５回目'!$A$5:$W$50,23,FALSE)="","",VLOOKUP(印刷!$B$6,'５回目'!$A$5:$W$50,23,FALSE)) -> 4.666666667 | AT8: =IF('５回目'!$D$3="","","５回目"&" 『"&'５回目'!$D$3&"』") -> ５回目 『じしゃくのせいしつ』 | AV8: =IF('５回目'!$D$2="","",'５回目'!$D$2) -> 2026-01-30 | AW8: =IF('５回目'!$T$51="","",'５回目'!$T$51) -> 5 | AX8: =IF('５回目'!$U$51="","",'５回目'!$U$51) -> 4.9 | AY8: =IF('５回目'!$V$51="","",'５回目'!$V$51) -> 4.5 | AZ8: =IF('５回目'!$W$51="","",'５回目'!$W$51) -> 4.833333333

Sheet 素朴概念集
A2: 素朴概念集
A3: 期 | B3: 月 | C3: 教科書＊1のページ | D3: 単元名 ●地域によって授業を行う順番が前後する単元、〇応用、★…他教科との関連 | E3: 時数 | F3: 節タイトル名 | G3: 学習指導要領の内容 | I3: 小学校指導要領解説 理科編 より | L3: 素朴概念 | O3: 素朴概念体験活動例 ※LT…レッツトライ！ | R3: 素朴概念とのずれ
A4: 前 期（44時間） | B4: 4 | C4: 1～5 | D4: ●巻頭 | E4: 1
C5: 6～13 | D5: 1．春の生き物 ★他教科との関連 ：生活科 | E5: 5 | F5: ①生き物のすがた | G5: B(1)ア(ｱ)、イ | I5: 生物は、色、形、大きさなど、姿に違いがあること。 | L5: 生物はすべて動いている。 植物は動かないから生きていない。 生物の色の違いはすべて環境によるものである（実際はコミュニケーションや体温調節のためでもある）。 生物の大きさの違いは年齢の違いである（実際は品種の違いによるもの）。＊5 | O5: 春の生き物をさがす。(LT) | R5: 水を吸収して葉が元気になる映像教材を見せる。 カメレオンの色の変化を観察する映像教材を見せる。
C6: 14～21 | D6: 2．たねまき ★他教科との関連 ：生活科 | E6: 3(4) | F6: ①たねをまこう | G6: B(1)ア(ｳ)、イ | I6: 植物の育ち方には一定の順序があること。 | L6: 子葉はどの植物も同じ形である。 植物は「根→茎→葉→花→実」の順番で育つ。 種は必ず土の中で育つ。 | O6: いろいろな植物の種を観察する。(LT) | R6: 種が植物によって違うことから、芽が出た後の様子を予想させる。 もやしの発芽の映像教材を見せて、芽が出るときは必ずしも土の中から出るわけではないことを確認する。
B7: 5
C8: 22～30 | D8: 3．チョウのかんさつ | E8: 5 | F8: ①チョウの育ち方 | G8: B(1)ア(ｲ)、イ | I8: 昆虫の育ち方には一定の順序があること。 | L8: 毛虫は大きくなっても毛虫のままである。 さなぎにならないチョウもいる。 卵から孵化したらすぐに成虫になる。 幼虫からさなぎへの変化は一瞬で起こる。 | O8: キャベツ畑でモンシロチョウの卵を探す。＊4 | R8: 昆虫の成長を段階に分けて絵や図を使って示し、成長の順番を予想させる。 毛虫の成長過程を描いた映像教材を見せる。
C9: 31～35 | E9: 1(2) | F9: ②成虫のからだのつくり | I9: 成虫の体は頭、胸及び腹からできていること。 | L9: 胸と腹の区別がつかない。 チョウの脚が頭や腹にもついている。 足の数が４本（または８本）ある。 | O9: （観察２） | R9: チョウの成虫の誤ったイラストを見せて正しいかどうかを考えさせる。 昆虫と他の節足動物（クモやムカデ）で足の本数を比較する活動を行う。
B10: 6 | C10: 36～38 | D10: ●どれぐらい育ったかな | E10: 1 | F10: ①植物の育ち方 | G10: B(1)ア(ｳ)、イ | I10: 植物の育ち方には一定の順序があること。 | L10: 高さが高くなる植物は葉も大きい。 葉の数が増えると必ず高さも高くなる。 植物はどんどん葉が増える（落葉もある）。 | O10: （観察１） | R10: アジュガなどの葉が多くても背が低い植物を紹介する。 背の高い木（松や杉）の葉と低い草花（タンポポやクローバー）の葉を当てるクイズを出し、葉の大きさが必ずしも植物の高さに比例しないことを確認する。
C11: 39～41 | E11: 1 | F11: ②植物のからだのつくり | I11: 植物の体は根、茎及び葉からできていること。 | L11: 根または茎、葉がない植物もある。 葉が茎と同じように植物を支える部分である。 | O11: （観察２） | R11: 植物には葉があることを復習する。 草取りなどの経験から植物に根があることを思い出させる。
C12: 42～46 | D12: 4．風やゴムのはたらき ★他教科との関連 ：生活科 | E12: 3(4) | F12: ①風のはたらき | G12: A(2)ア(ｱ)(ｲ)、イ | I12: 風の力は、物を動かすことができること。また、風の力の大きさを変えると、物が動く様子も変わること。 | L12: 風の力によって車などの物が動くのは、風が車などのに付けた帆などを速く通り過ぎるからである。＊2 風が強くなると車が倒れそうだ。＊2 風が強くなると車がとんでいきそうだ。＊2 | O12: うちわで風を送って車を動かして遊ぶ。(LT)＊4 | R12: 風力発電は風でプロペラを回しているが、風車自体は動いていないことに気付かせる。 風が強くても車が倒れたりとんでいかない様子を見せる。
C13: 47～53 | E13: 4(5) | F13: ②ゴムのはたらき | I13: ゴムの力は、物を動かすことができること。また、ゴムの力の大きさを変えると、物が動く様子も変わること。 | L13: ゴムを引っ張った勢いで車は走るので、ゴムを引っ張る長さは関係ない。＊2 ゴムを長くのばせばのばすほど、どんどんのびきってしまいそれだけの力を得ることができない。＊2 | O13: 生活科で輪ゴムで動くおもちゃを作ったことを思い出させる。 | R13: 割り箸鉄砲を輪ゴムの長さを変えて飛ばして、勢いの変化を見せる。 輪ゴムを伸ばしても伸びきらないことを確認する。
B15: 7 | C15: 54～57 | D15: ●花がさいたよ | E15: 2 | G15: B(1)ア(ｳ)、イ | I15: 植物の育ち方には一定の順序があること。 | L15: 種から直接花が咲く。 花は必ず茎の上に咲く。 植物は「茎→葉→花」の順番で育つ（茎と葉が同時に成長したり、花が先に咲くこともある）。 | O15: （観察１） | R15: 種から発芽することを復習する。 ホウセンカなどで茎の途中に花が咲いている様子を見せる。
A16: 期 | B16: 月 | C16: 教科書のページ | D16: 単元名 ●地域によって授業を行う順番が前後する単元、〇応用、☆…他教科との関連 | E16: 時数 | F16: 節タイトル名 | G16: 学習指導要領の内容 | I16: 小学校指導要領解説 理科編 より | L16: 素朴概念 | O16: 素朴概念体験活動例 ※LT…レッツトライ！ | R16: 素朴概念とのずれ集
A17: 前 期（44時間） | B17: 9 | C17: 58～59 | D17: ○わたしの研究 | E17: 2
C18: 60～67 | D18: ●実ができたよ | E18: 2(3) | G18: B(1)ア(ｳ)、イ | I18: 植物の育ち方には一定の順序があること。 | L18: 花のなかにたねができる。 実ができる前に種ができる。 | O18: （観察１） | R18: りんごの花を見せて、花の中に種が入っていないことを確認する。 果物の実の中に種があることを思い出させる。
C19: 68～72 | D19: 5．こん虫のかんさつ | E19: 2 | F19: ①こん虫などのすみか | G19: B(1)ア(ｱ)(ｲ)、イ | I19: 生物は、周辺の環境と関わって生きていること。 | L19: すべての昆虫が草むらや木の上をすみかにしている。 すべての昆虫が地面をすみかにしている。 | O19: 遠足などで行ったところで見かけた昆虫を聞く。 | R19: 昆虫について具体的な名前に触れながら復習する。 カブトムシが池にいるかどうか児童に問い掛ける。
C20: 73～74 | E20: 1(2) | F20: ②こん虫のからだ | I20: 生物は、色、形、大きさなど、姿に違いがあること。 成虫の体は頭、胸及び腹からできていること。 | L20: 胸と腹の区別がつかない。 脚が頭や腹にもついている。 足の数が４本（または８本）ある。 | O20: チョウの成虫のからだのつくりは、どうなっていたかを問い掛ける。 | R20: 左の活動のあとに、チョウの成虫の体のつくりを復習する。 昆虫と他の節足動物（クモやムカデ）で足の本数を比較する活動を行う。
B21: 10 | C21: 75～81 | E21: 2 | F21: ③こん虫の育ち方 | I21: 昆虫の育ち方には一定の順序があること。 | L21: トンボは幼虫からさなぎになって成虫になる。 すべての昆虫は幼虫→さなぎ→成虫の順に育つ。 さなぎの期間は非常に短い。 | O21: （活動） | R21: チョウの育ち方を復習する。 昆虫はみなチョウと同じように育つのか問い掛ける。
C22: 82～89 | D22: 6．太陽とかげ ★他教科との関連 ：生活科 | E22: 6 | F22: ①太陽とかげのようす | G22: B(2)ア(ｱ)、イ | I22: 日陰は太陽の光を遮るとでき、日陰の位置は太陽の位置の変化によって変わること。 | L22: 日陰は物体の真下にできる。 日陰は太陽の光がなくてもできる。 | O22: 影踏み遊びを行う。(LT) | R22: 影踏み遊びを通して日陰は長くなったり短くなったりすることを確認する。 曇りの日の様子を見せて日陰ができないことを確認する。
I23: 日陰の位置は太陽の位置の変化によって変わること。 | L23: 日陰の位置が直線的に変化する。 日陰は常に同じ方向に伸びる。 | O23: 影踏み遊びを午前と午後の２回行い、午前と午後の影を比べる。＊4 | R23: 日陰で休むときに、ずっと同じ位置で休むとどうなるか問い掛ける。 太陽の位置の時間変化の動画を見せる。
A24: 後 期（46時間） | C24: 90～95 | E24: 3 | F24: ②日なたと日かげの地面 | I24: 地面は太陽によって暖められ、日なたと日陰では地面の暖かさや湿り気に違いがあること。 | L24: 地面は常に同じ温度である。 湿り気は日なたと日陰で変わらない。 | O24: プールの授業を思い出させて、プールサイドの地面の温度がどうだったかを児童に問い掛ける。 | R24: 左の問いかけを行った後に、理由を聞いてみる。湿り気についても確認する。
B25: 11 | C25: 96～102 | D25: 7．太陽の光 | E25: 4 | F25: ①はね返した日光 | G25: A(3)ア(ｱ)(ｲ)、イ | I25: 日光は直進し、集めたり反射させたりできること。 | L25: 光はジグザグに進む。 日光は物に当たっても通り抜ける。 | O25: 日光をはね返して、まとに当てる活動を行う。(LT) | R25: 暗い部屋で懐中電灯を照らして光が直進することを確認する。 透明な物体（ガラスなど）を通過する光と、反射や吸収される物体（紙や黒い物体）の違いを見せる。
C26: 103～107 | E26: 1 | F26: ②集めた日光 | I26: 物に日光を当てると、物の明るさや暖かさが変わること。 | L26: 日光が当たると物自体が光を発して明るくなる。 鏡がはね返すのは日光の明るさだけで、あたたかさは変わらない。 日光が当たるとどの物も同じ温度になる。 | O26: 日光が当たった物の温かさを物の色に着目して調べさせる。 | R26: 鏡に反射した太陽光で物が燃える動画を見せる。 「太陽とかげ」で学んだ日なたと日陰の地面の温かさの違いを復習する。
C27: 108～112 | D27: 8．音のせいしつ ★他教科との関連 ：音楽 | E27: 3 | F27: ①音が出るとき | G27: A(3)ア(ｳ)、イ | I27: 物から音が出るときには物が震えていること。 | L27: 音を出しているものすべてが、震えているわけではない。＊3 震えが目で見えないものは、震えていない。 | O27: 身近な楽器を鳴らして音の様子を観察する。 | R27: 音が出ているのに振動していないように見える動画を見せる。
I28: 音が大きいときは震え方が大きく、音が小さいときは震え方が小さい。 | L28: 音が出ているときの震え方は音の大小に関わらず同じである。 音が大きいときは震え方が小さく、音が小さいときは震え方が大きい。 | O28: 身近な楽器を鳴らして音の様子を観察する。 | R28: 音が出ているのに振動していないように見える動画を見せる。
C29: 113～117 | E29: 2 | F29: ②音のつたわり | I29: 物から音が伝わったりするときには物が震えていること。 | L29: 物から音が伝わったりするときには物が震えていない。 音は空気を通してのみ伝わり、物（固体）や液体を通して音は伝わらない。 | O29: 鉄棒（または机）に耳を当て、はなれたところからそっとたたく活動を行う。 | R29: 実験１の結果を復習し、音が出ているとき物は震えていることを確認する。 水の中に潜っても音が聞こえることを思い出させる。
A30: 期 | B30: 月 | C30: 教科書のページ | D30: 単元名 ●地域によって授業を行う順番が前後する単元、〇応用、☆…他教科との関連 | E30: 時数 | F30: 節タイトル名 | G30: 学習指導要領の内容 | I30: 小学校指導要領解説 理科編 より | L30: 素朴概念 | O30: 素朴概念体験活動例 ※LT…レッツトライ！ | R30: 素朴概念とのずれ集
A31: 後 期（46時間） | B31: 12 | C31: 118～122 | D31: 9．物の重さ ★他教科との関連 ：算数科 | E31: 3 | F31: ①物の形と重さ | G31: A(1)ア(ｱ)(ｲ)、イ | I31: 物は、形が変わっても重さは変わらないこと。 | L31: アルミホイルをまるめると重くなる。（軽くなる）＊2 粘土を分ける（細長く伸ばす）と重くなる。（軽くなる）＊2 丸い物は軽く（重く）て、角張っている物は重い（軽い）。＊2 | O31: ものには重さがあることを確認し、身の回りのものを重さ順に並べる。＊4 | R31: 左の活動のあとに粘土をつぶして、この順番のままでよいか問い掛ける。＊4
C32: 123～129 | E32: 3(4) | F32: ②物による重さのちがい | I32: 物は、体積が同じでも重さは違うことがあること。 | L32: 体積が小さい物は重い（軽い）。＊2 体積が同じ物は重さは同じである。＊2 | O32: 同じ体積の木と金属の重さを比較する。 | R32: １L紙パックの異なる飲み物の重さを比較する。
B33: 1 | C33: 130～134 | D33: 10．電気の通り道 | E33: 3 | F33: ①明かりがつくつなぎ方 | G33: A(5)ア(ｱ)(ｲ)、イ | I33: 電気を通すつなぎ方と通さないつなぎ方があること。 | L33: 豆電球と乾電池を、導線でつなげば、どんなつなぎ方でも明かりはつく。 導線がなくても明かりはつく。＊5 電池の＋極と－極のつなぎ方を無視しても明かりはつく。 | O33: 2つのロボットの目を比較し、明かりがついている豆電球と明かりがついていない豆電球の様子に気づかせる。その後に、導線がついた豆電球と乾電池を配布し、明かりをつけてみるように促す。＊4 | R33: 左の活動のあとに明かりがつくときとつかないときがあることに注目させ、「明かりがつくときとつかないときの様子を比べてみよう」と声かけすることで、その要因を考えるように促す。＊4
C34: 135～141 | E34: 3(4) | F34: ②電気を通す物と通さない物 | I34: 電気を通す物と通さない物があること。 | L34: 木のつまようじは導線と形が似ているから、電気を通しそうだ。 金属は冷たくて（硬い）ので電気を通すが、プラスチックや木は暖かくて（柔らかい）ので電気を通さない。 | O34: 教科書の活動（P136 問題をつかもう）を実際にやってみせる。 | R34: 左の活動で、鉄のくぎにドライヤーなどを使って温めても豆電球が光る様子を見せる。
C35: 142～148 | D35: 11．じしゃくのせいしつ ★他教科との関連 ：生活科 | E35: 4(5) | F35: ①じしゃくにつく物 | G35: A(4)ア(ｱ)(ｲ)、イ | I35: 磁石に引き付けられる物と引き付けられない物があること。 | L35: 電気を通すもの（アルミニウムなど）は、磁石につく。 重くて硬い物は磁石につく。 | O35: 身の回りで、磁石が使われているものは何か問い掛ける。そのあとに、いろいろな物に磁石を近づけてみる。 | R35: お札に磁石を近づける（磁性インクが用いられているため磁石につく）。 ペーパーウェイトや漬物石などに磁石がつかないことを確認する。
B36: 2 | C36: 149～151 | E36: 2 | F36: ②極のせいしつ | I36: 磁石の異極は引き合い、同極は退け合うこと。 | L36: 磁石は常に引き合う。 同じ極同士も少しは引き合う。 磁石の極が変わることがある。 | O36: N極とS極を隠した磁石のN極とS極の両方にクリップを付ける。 | R36: 左の活動のあとに、N極とS極を見せて、N極とS極の両方にクリップがついていることを確認させる。
C37: 152～157 | E37: 3 | F37: ③じしゃくにつけた鉄 | I37: 磁石に近付けると磁石になる物があること。 | L37: 鉄のくぎ自体は磁石ではなかったから、磁石を近づけても磁石にはならない。 すべての金属が磁石に引き付けられ、磁石になる。 | O37: 教科書の活動（P152 問題をつかもう）を実際にやってみせる。 | R37: 左の活動の前に、（磁化させていない）鉄のくぎどうしはくっつかかない様子を見せる。
B38: 3 | C38: 158～161 | D38: ●つくってあそぼう | E38: 4 | G38: A(2)(3)(4)(5)
C39: 172～173 | D39: 1年間をふりかえろう | E39: 1
C40: 174176 | D40: 理科とSDGs | E40: 1
D41: 理科とプログラミング
B42: ＜参考文献＞
B43: ＊1 | C43: 東京書籍 新編新しい理科３
B44: ＊2 | C44: 堀井孝彦(2019)「小学校理科における、子どもが持つ物理概念一覧表の作成」
B45: ＊3 | C45: 小川博士、内貴千里、平田豊誠(2021)「小学生の「音」に関する素朴概念の実態」
B46: ＊4 | C46: 寺本貴啓、有本淳(2024)「問題を見いだす理科授業」東洋館出版社
B47: ＊5 | C47: 寺本貴啓「みんなの教育技術」https://kyoiku.sho.jp/

Sheet ファシリテーション集
B2: ファシリテーション集
B3: 問題解決の過程 | C3: 学習シート | D3: 板書スライド | E3: アンケート | F3: 分析して解釈する力 | G3: 指導上の留意点 | H3: 予想される児童の学習状況 | I3: 予想される児童の学習状況への声掛けの例
B4: (自然事象との出会い) [素朴概念体験活動] | C4: － | D4: ０ 「〇〇」で遊ぼう | F4: －
B5: (自然事象との出会い) [素朴概念の確認] | C5: － | D5: １ 「自分が知ってい ること」を思い出 そう | E5: Ｑ１ 児童が授業中に、「授業に関 係する知識や体験」を思い出 すための活動 | F5: －
B6: － | C6: － | D6: ２ 今日のじゅぎょう のテーマをかくに んしよう | F6: －
B7: 自然事象への気付き [気付きの表出] | C7: ① かんさつして気づ いたことやぎ問に 思ったことを書き ましょう。 | D7: ３ 気づいたことやぎ 問に思ったことを 書こう | E7: Ｑ２ 児童が授業中に、「授業に関 係する知識や体験」と「授業 の始めの活動で得られたこ と」を比較するための活動 Ｑ３ 児童がＱ２で比較したことか ら、気付いたことや疑問を持 つための活動 | F7: － | G7: ・体験活動での注意点を伝える。 ・付箋は｢△△△は□□□｣のように書かせる。 ・一枚の付箋に対して、一つの事象を記入することを 伝える。 | H7: (1) 付箋への書き出しが難しい。 | I7: 【1】 ｢何をどのようにすると、どんな様子になりましたか｣
B8: 自然事象への気付き [気付きの抽出] | C8: ① かんさつして気づ いたことやぎ問に 思ったことを書き ましょう。 | D8: ４ テーマにあってい るかたしかめよう | E8: Ｑ４ 児童が気付きや疑問（他人の 気付きや疑問も含む）から、 学習内容にあったものを選ぶ ための活動 | F8: 抽出 | H8: (2) 個人で考える時間に、班で相談している。 (3) テーマに合っている付箋を外してしまっていたり、 テーマに合っていない付箋を残してしまっている。 | I8: 【2】 ｢まずは一人で考えましょう。この後に班で考える時間が ありますよ｣｢この後の班での話し合いのために、まず一人 で考えをまとめましょう｣ 【3】 「これはテーマにあっているでしょうか」「本当にそう なのでしょうか」
B9: 自然事象への気付き [気付きの整理] | C9: ② 「テーマ」につい て気づいたことや ぎ問に思ったこと をなかま分けしま しょう。 | D9: ５ なかま分けし、名 前をつけよう | E9: Ｑ５ 児童がＱ４で選んだものを仲 間分けするための活動 Ｑ６ 児童がＱ５で仲間分けしたグ ループに名前をつけるための 活動 | F9: 整理 | G9: ・学習内容によっては、変化しない(変わらない)とい うまとめ方があってもよいことを伝える。 | H9: (4) テーマに合った仲間分けができていない。 (5) 付箋を上手く分類できていない。 (6) 感覚的な文言で表現されている。 (7) 同じ現象に対する表現が、児童ごとに異なる。 | I9: 【4】 ｢このテーマに合ったまとめになっているでしょうか｣ 【5】 ｢この付箋は、ここにあっていいのでしょうか｣｢同じよう なことが書いている付箋はないでしょうか｣ 【6】 ｢何が起こったから、そうなったのでしょうか｣ 【7】 「この付箋の〇〇と、その付箋の××は、同じことなのか な、違うことなのかな。」この声掛けで、要領を得ない 場合には、もう一度体験活動をさせる。
B10: 自然事象への気付き | C10: ③ 『気づき』 | D10: ６ なかま分けしてつ けた名前から、気 づいたことをまと めよう | E10: Ｑ７ 児童が名前をつけたグループ から学習内容にあった「気付 き」を書いたり話したりする ための活動 | F10: (自然事象への気付き) | H10: (8) 気付きを書く際に言葉を変えたり、まとめようとした りしている。 | I10: 【8】 ｢整理して付けた名前をそのまま書きましょう｣
B11: 自然事象への気付き [気付きを具体化] | C11: ④ 『気づき』から分 かること（れい） | D11: ７ 『気づき』からわ かりやすいれいを 考えよう | E11: Ｑ８ 児童がＱ７の「気付き」か ら、例を考えるための活動 | F11: － | G11: ・表に例を書き込む作業は、[気付きの整理]で使用し た付箋を表に移動させる等の活動に変更して実施し てもよい。
B12: 自然事象への気付き [関係性を見いだす] | C12: ④ 『気づき』から分 かること （きょう通点） | D12: ８ れいを比べて、同 じところを見つけ よう | E12: Ｑ９ 児童がＱ８で考えた例同士を 比較するための活動 Ｑ10 児童がＱ９で考えた例を比較 したことから関係性（共通点 や差異点）を見つけるための 活動 | F12: 関係性 | G12: ・共通点は一つではないことを伝える。 ・共通点を考える上で、まとめることができない『れ い』は後に共通点が見つかったり、問題の設定に役 立ったりする場合があるので、消さずに残しておか せる。 | H12: (9) 共通点が見つけられない。 (10) 一つの気付きと例に複数の共通点を書いて先に進ん でいない。 | I12: 【9】 「この『れいと』その『れい』の同じところはあります か」｢まとめられない『れい』を除いて考えてみましょ う｣ 【10】 ｢まずは一つずつ書きましょう。全ての気付きについて一 つずつ書けたら二つ目の共通点も書きましょう｣
B13: 自然事象への気付き [傾向をみいだす] | C13: ④ 『気づき』から分 かること（☆） | D13: ９ きょう通点からそ れぞれの☆を見つ けよう | E13: Ｑ11 児童がＱ10で見つけた関係性 からそれぞれの傾向を見つけ るための活動 | F13: 傾向 | G13: ・☆(傾向)は一つではないことを伝える。 | H13: (11) ☆(傾向)を見つけることができない。 (12) 一つの気付きと例に複数の☆を書いて先に進んでい ない。 | I13: 【11】 ｢これは、テーマの何に注目しているのでしょうか｣ 【12】 ｢まずは一つずつ書きましょう。全ての気付きについて一 つずつ書けたら二つ目の☆も書きましょう｣
B14: 問題の設定 | C14: ⑤ きょう通点（☆） をもとにしらべて みたいこと | D14: 10 今日の授業から、 調べてみたいこと やたしかめてみた いことを考えよう | E14: Ｑ12 児童がＱ10で見つけた関係性 やＱ11で見つけた傾向とQ7で まとめた「気付き」を比較す る活動 Ｑ13 児童がＱ12で比較したことか ら問題を自分でつくるための 活動 | F14: 問題の設定 | G14: ・学習の振り返りをすることで、テーマを踏まえた問 題の設定につなげられるようにする。 ・問題設定における児童の思考パターンは、現段階で 想定し得る内容を示している。 ・問題設定における児童の思考パターンは、順を追っ て行うわけではなく、それぞれの児童の学習状況に 合わせ、パターンを選択する。 ・問題の設定が早くできた児童には板書スライド (※11)を用いて、自分の設定した問題を見直しさせ る。 | H14: ＜問題設定における児童の思考パターン＞ (13) ＜パターン１＞ 素朴概念との差から問題を設定する (14) ＜パターン２＞ 班内の｢自然事象への気付き｣と｢共通点｣から問題 を設定する (15) ＜パターン３＞ 班同士の相違から問題を設定する (16) ＜パターン４＞ 班同士の一致から問題を設定する (17) 示した問題の形「◎◎◎は、＊＊＊(する)と、____ (なの)だろうか。」で書けていない。 | I14: 【13】 ｢自分が思っていたことと学習したことを比べ、調べてみ たいと思ったことはありますか｣ 【14】 ｢学習を通して｢○○○｣ということに気付いたのですね。 それは他の例で試しても同じ結果になるでしょうか｣ 【15】 ｢ＡグループとＢグループは気付きは同じだったけれど、 それぞれの共通点(または傾向)は違っていたのです ね。(どちらが正しいのでしょうか)｣ 【16】 ｢どのグループも同じまとめ方になったのですね。それは 他の例で試しても同じ結果になるでしょうか｣ 【17】 「画面に出ている問題の形になっているでしょうか」 「何をすると、そうなるのでしょうか」
B15: 問題の設定 [検討・改善] | C15: ⑤ きょう通点（☆） をもとにしらべて みたいこと | D15: 11 自分で考えた問題 をたしかめよう | E15: Ｑ14 児童が自分で考えた問題が学 習内容にあったものなのか、 確認するための活動 Ｑ15 児童が自分で考えた問題は科 学的に解決することができる か、確認するための活動 | F15: (検討・改善) | G15: ・児童が自分で設定した問題を確認し、足りない箇所 があれば修正させる。 ・科学的な観察・実験とするために、実証性・再現性 ・客観性を確認させる。
